fUST/lending_fUST_20250805
["ID","MTS","AMOUNT","RATE_DAILY","PERIOD"]
[377331881,1754352652555,-460.0,0.00027671,2]
[377331882,1754352652565,-460.9,0.00027671,2]
[377331883,1754352652575,-196.883814,0.00027671,7]
[377331884,1754352652585,-460.0,0.00027671,2]
[377331885,1754352652595,-1568.58,0.00027671,2]
[377331886,1754352652604,-460.0,0.00027671,2]
[377331887,1754352652614,-460.0,0.00027671,2]
[377331888,1754352652623,-509.81,0.00027671,2]
[377331889,1754352652633,-460.0,0.00027671,2]
[377331890,1754352652643,-460.0,0.00027671,2]
[377331891,1754352652652,-456.11,0.00027671,2]
[377331892,1754352652662,-889.2,0.00027671,2]
[377331893,1754352652672,-460.0,0.00027671,2]
[377331894,1754352652681,-460.0,0.00027671,2]
[377331895,1754352652691,-460.0,0.00027671,2]
[377331896,1754352652701,-460.0,0.00027671,2]
[377331897,1754352652710,-460.0,0.00027671,2]
[377331898,1754352652719,-622.78,0.00027671,2]
[377331899,1754352652728,-460.0,0.00027671,2]
[377331900,1754352652738,-460.0,0.00027671,2]
[377331901,1754352652747,-300.0,0.00027673,5]
[377331902,1754352652757,-863.67767365,0.0002768,2]
[377331903,1754352652766,-160.0,0.00027811,2]
[377331904,1754352652776,-500.0,0.0002789,2]
[377331905,1754352652785,-460.0,0.00027899,2]
[377331906,1754352652795,-460.0,0.00027899,2]
[377331907,1754352652804,-1779.8,0.00027899,2]
[377331908,1754352652813,-460.0,0.00027899,2]
[377331909,1754352652824,-460.0,0.00027899,2]
[377331910,1754352652834,-678.81,0.00027899,2]
[377331911,1754352652843,-151.0,0.000279,7]
[377331912,1754352652853,-151.0,0.000279,7]
[377331913,1754352652863,-1000.0,0.00027921,5]
[377331914,1754352652872,-500.0,0.00027921,5]
[377331915,1754352652882,-1000.0,0.00027921,5]
[377331916,1754352652892,-460.0,0.00027938,2]
[377331917,1754352652901,-460.0,0.00027938,2]
[377331918,1754352652911,-460.4538715,0.00027938,2]
[377331919,1754352652920,-460.0,0.00027939,2]
[377331920,1754352652930,-460.0,0.00027939,2]
[377331921,1754352652940,-416.89502313,0.00027939,2]
[377331922,1754352652949,-250.62832759,0.00027945,2]
[377331923,1754352652959,-460.0,0.00027945,2]
[377331924,1754352652968,-460.0,0.00027945,2]
[377331925,1754352652978,-460.0,0.00027945,2]
[377331926,1754352652987,-159.911255,0.00027945,7]
[377331927,1754352652997,-151.0,0.00027945,7]
[377331928,1754352653006,-209.46569,0.00027945,7]
[377331929,1754352653016,-382.81607924,0.00027945,2]
[377331930,1754352653026,-460.0,0.00027945,2]
[377331931,1754352653035,-460.0,0.00027945,2]
[377331932,1754352653045,-394.276246,0.00027945,7]
[377331933,1754352653055,-394.276246,0.00027945,7]
[377331934,1754352653064,-460.0,0.00027945,2]
[377331935,1754352653074,-460.0,0.00027945,2]
[377331936,1754352653083,-460.0,0.00027945,2]
[377331937,1754352653093,-498.16,0.00027945,2]
[377331938,1754352653103,-460.0,0.00027945,2]
[377331939,1754352653112,-460.0,0.00027945,2]
[377331940,1754352653122,-190.16099976,0.00027945,2]
[377331941,1754352653131,-460.0,0.00027945,2]
[377331942,1754352653141,-460.0,0.00027945,2]
[377331943,1754352653151,-151.0,0.00027945,7]
[377331944,1754352653161,-460.0,0.00027945,2]
[377331945,1754352653171,-162.065542,0.00027945,7]
[377331946,1754352653181,-460.0,0.00027945,2]
[377331947,1754352653191,-162.065542,0.00027945,7]
[377331948,1754352653200,-151.0,0.00027945,7]
[377331949,1754352653210,-890.31,0.00027945,2]
[377331950,1754352653220,-460.0,0.00027945,2]
[377331951,1754352653230,-460.0,0.00027945,2]
[377331952,1754352653239,-760.6,0.00027945,2]
[377331953,1754352653249,-264.508428,0.00027945,7]
[377331954,1754352653259,-264.508428,0.00027945,7]
[377331955,1754352653368,-460.0,0.00027945,2]
[377331956,1754352653378,-460.0,0.00027945,2]
[377331957,1754352653388,-460.0,0.00027945,2]
[377331958,1754352653398,-460.0,0.00027945,2]
[377331959,1754352653407,-460.0,0.00027945,2]
[377331960,1754352653416,-460.0,0.00027945,2]
[377331961,1754352653426,-460.0,0.00027945,2]
[377331962,1754352653436,-460.0,0.00027945,2]
[377331963,1754352653445,-3440.83,0.00027945,2]
[377331964,1754352653455,-151.0,0.00027945,7]
[377331965,1754352653464,-2422.55,0.00027945,2]
[377331966,1754352653474,-460.0,0.00027945,2]
[377331967,1754352653483,-151.0,0.00027945,7]
[377331968,1754352653492,-460.0,0.00027945,2]
[377331969,1754352653502,-205.463142,0.00027945,7]
[377331970,1754352653511,-1983.4,0.00027945,2]
[377331971,1754352653520,-460.0,0.00027945,2]
[377331972,1754352653529,-460.0,0.00027945,2]
[377331973,1754352653539,-190.90763,0.00027945,7]
[377331974,1754352653548,-460.0,0.00027945,2]
[377331975,1754352653557,-190.90763,0.00027945,7]
[377331976,1754352653566,-460.0,0.00027945,2]
[377331977,1754352653576,-151.0,0.00027945,7]
[377331978,1754352653585,-1573.39,0.00027945,2]
[377331979,1754352653595,-460.0,0.00027945,2]
[377331980,1754352653604,-460.0,0.00027945,2]
[377331981,1754352653613,-460.0,0.00027945,2]
[377331982,1754352653623,-460.0,0.00027945,2]
[377331983,1754352653633,-671.6,0.00027945,2]
[377331984,1754352653642,-151.0,0.00027945,7]
[377331985,1754352653652,-460.0,0.00027945,2]
[377331986,1754352653662,-460.0,0.00027945,2]
[377331987,1754352653672,-3403.99,0.00027945,2]
[377331988,1754352653681,-460.0,0.00027945,2]
[377331989,1754352653692,-460.0,0.00027945,2]
[377331990,1754352653702,-867.6,0.00027945,2]
[377331991,1754352653711,-460.0,0.00027945,2]
[377331992,1754352653721,-460.0,0.00027945,2]
[377331993,1754352653730,-831.45,0.00027945,2]
[377331994,1754352653740,-869.09,0.00027945,2]
[377331995,1754352653750,-734.49,0.00027945,2]
[377331996,1754352653759,-164.136824,0.00027945,7]
[377331997,1754352653770,-164.136824,0.00027945,7]
[377331998,1754352653780,-460.0,0.00027945,2]
[377331999,1754352653789,-460.0,0.00027945,2]
[377332000,1754352653799,-160.0,0.00027945,7]
[377332001,1754352653808,-725.54,0.00027945,2]
[377332002,1754352653818,-460.0,0.00027945,2]
[377332003,1754352653836,-461.05335821,0.00027945,7]
[377332004,1754352653846,-460.0,0.00027945,2]
[377332005,1754352653856,-1568.58,0.00027945,2]
[377332006,1754352653866,-160.0,0.00027945,7]
[377332007,1754352653876,-460.0,0.00027945,2]
[377332008,1754352653886,-550.70363282,0.00027945,2]
[377332009,1754352653896,-509.81,0.00027945,2]
[377332010,1754352653905,-460.0,0.00027945,2]
[377332011,1754352653914,-889.2,0.00027945,2]
[377332012,1754352653924,-525.33,0.00027945,2]
[377332013,1754352653934,-460.0,0.00027945,2]
[377332014,1754352653944,-460.0,0.00027945,2]
[377332015,1754352653953,-460.0,0.00027945,2]
[377332016,1754352653964,-231.67098287,0.00027945,7]
[377332017,1754352653975,-622.78,0.00027945,2]
[377332018,1754352653984,-460.0,0.00027945,2]
[377332019,1754352653994,-160.0,0.00027945,7]
[377332020,1754352654004,-160.0,0.00027947,3]
[377332021,1754352654014,-200.0,0.00027973,5]
[377332022,1754352654025,-160.0,0.00027973,4]
[377332023,1754352654036,-1000.0,0.0002798,2]
[377332024,1754352654046,-160.0,0.00027999,5]
[377332025,1754352654058,-527.23761927,0.00028,3]
[377332026,1754352654067,-527.23761927,0.00028,3]
[377332027,1754352654077,-160.0,0.00028025,6]
[377332028,1754352654089,-160.0,0.0002805,7]
[377332029,1754352654099,-160.0,0.00028076,8]
[377332030,1754352654109,-160.0,0.00028102,9]
[377332031,1754352654118,-161.20120495,0.00028102,5]
[377332032,1754352654127,-460.0,0.00028173,2]
[377332033,1754352654137,-460.0,0.00028173,2]
[377332034,1754352654147,-1779.8,0.00028173,2]
[377332035,1754352654157,-460.0,0.00028173,2]
[377332036,1754352654167,-460.0,0.00028173,2]
[377332037,1754352654176,-678.81,0.00028173,2]
[377332038,1754352654186,-151.0,0.00028212,7]
[377332039,1754352654196,-460.0,0.00028212,2]
[377332040,1754352654206,-460.0,0.00028212,2]
[377332041,1754352654215,-160.0,0.00028212,7]
[377332042,1754352654224,-151.0,0.00028219,7]
[377332043,1754352654234,-460.0,0.00028219,2]
[377332044,1754352654243,-460.0,0.00028219,2]
[377332045,1754352654253,-460.0,0.00028219,2]
[377332046,1754352654262,-460.0,0.00028219,2]
[377332047,1754352654272,-153.649778,0.00028219,7]
[377332048,1754352654282,-460.0,0.00028219,2]
[377332049,1754352654295,-460.0,0.00028219,2]
[377332050,1754352654304,-460.0,0.00028219,2]
[377332051,1754352654313,-890.31,0.00028219,2]
[377332052,1754352654323,-460.0,0.00028219,2]
[377332053,1754352654332,-760.6,0.00028219,2]
[377332054,1754352654341,-460.0,0.00028219,2]
[377332055,1754352654351,-460.0,0.00028219,2]
[377332056,1754352654361,-3440.83,0.00028219,2]
[377332057,1754352654370,-2422.55,0.00028219,2]
[377332058,1754352654380,-1983.4,0.00028219,2]
[377332059,1754352654389,-460.0,0.00028219,2]
[377332060,1754352654399,-460.0,0.00028219,2]
[377332061,1754352654408,-460.0,0.00028219,2]
[377332062,1754352654418,-460.0,0.00028219,2]
[377332063,1754352654428,-1573.39,0.00028219,2]
[377332064,1754352654437,-460.0,0.00028219,2]
[377332065,1754352654447,-531.92,0.00028219,2]
[377332066,1754352654457,-474.27,0.00028219,2]
[377332067,1754352654467,-460.0,0.00028219,2]
[377332068,1754352654476,-671.6,0.00028219,2]
[377332069,1754352654486,-3403.99,0.00028219,2]
[377332070,1754352654496,-460.0,0.00028219,2]
[377332071,1754352654506,-460.0,0.00028219,2]
[377332072,1754352654515,-867.6,0.00028219,2]
[377332073,1754352654524,-460.0,0.00028219,2]
[377332074,1754352654534,-831.45,0.00028219,2]
[377332075,1754352654543,-869.09,0.00028219,2]
[377332076,1754352654553,-734.49,0.00028219,2]
[377332077,1754352654563,-460.0,0.00028219,2]
[377332078,1754352654572,-725.54,0.00028219,2]
[377332079,1754352654582,-151.0,0.00028219,7]
[377332080,1754352654592,-1568.58,0.00028219,2]
[377332081,1754352654602,-509.81,0.00028219,2]
[377332082,1754352654611,-460.0,0.00028219,2]
[377332083,1754352654622,-889.2,0.00028219,2]
[377332084,1754352654631,-291.38,0.00028219,2]
[377332085,1754352654641,-460.0,0.00028219,2]
[377332086,1754352654651,-622.78,0.00028219,2]
[377332087,1754352654660,-1741.1,0.0002825,3]
[377332088,1754352654670,-1160.72,0.0002825,3]
[377332089,1754352654680,-151.0,0.0002825,7]
[377332090,1754352654689,-580.36,0.0002826,3]
[377332091,1754352654700,-260.0,0.00028359,2]
[377332092,1754352654710,-151.0,0.00028447,7]
[377332093,1754352654720,-460.0,0.00028447,2]
[377332094,1754352654730,-151.0,0.00028447,7]
[377332095,1754352654740,-1779.8,0.00028447,2]
[377332096,1754352654750,-151.0,0.00028447,7]
[377332097,1754352654759,-460.0,0.00028447,2]
[377332098,1754352654768,-460.0,0.00028447,2]
[377332099,1754352654778,-190.90763,0.00028447,7]
[377332100,1754352654787,-190.90763,0.00028447,7]
[377332101,1754352654797,-164.136824,0.00028447,7]
[377332102,1754352654807,-678.81,0.00028447,2]
[377332103,1754352654817,-164.136824,0.00028447,7]
[377332104,1754352654827,-3855.57422021,0.00028458,2]
[377332105,1754352654836,-1000.0,0.00028468,5]
[377332106,1754352654846,-1500.0,0.00028468,5]
[377332107,1754352654855,-1500.0,0.00028468,5]
[377332108,1754352654865,-150.0,0.00028473,5]
[377332109,1754352654875,-151.0,0.00028476,7]
[377332110,1754352654884,-151.0,0.00028476,7]
[377332111,1754352654893,-151.0,0.00028476,7]
[377332112,1754352654903,-151.790869,0.00028485,7]
[377332113,1754352654913,-151.0,0.00028485,7]
[377332114,1754352654923,-515.79321717,0.00028486,2]
[377332115,1754352654938,-394.276246,0.00028486,7]
[377332116,1754352654947,-394.276246,0.00028486,7]
[377332117,1754352654957,-460.0,0.00028486,2]
[377332118,1754352654966,-264.508428,0.00028486,7]
[377332119,1754352654976,-264.508428,0.00028486,7]
[377332120,1754352654986,-151.0,0.00028489,7]
[377332121,1754352654996,-151.0,0.00028489,7]
[377332122,1754352655007,-460.0,0.00028493,2]
[377332123,1754352655017,-460.0,0.00028493,2]
[377332124,1754352655026,-460.0,0.00028493,2]
[377332125,1754352655036,-528.14,0.00028493,2]
[377332126,1754352655046,-460.0,0.00028493,2]
[377332127,1754352655056,-460.0,0.00028493,2]
[377332128,1754352655067,-162.065542,0.00028493,7]
[377332129,1754352655077,-162.065542,0.00028493,7]
[377332130,1754352655086,-890.31,0.00028493,2]
[377332131,1754352655096,-460.0,0.00028493,2]
[377332132,1754352655106,-760.6,0.00028493,2]
[377332133,1754352655117,-460.0,0.00028493,2]
[377332134,1754352655127,-460.0,0.00028493,2]
[377332135,1754352655137,-3440.83,0.00028493,2]
[377332136,1754352655147,-2422.55,0.00028493,2]
[377332137,1754352655158,-1983.4,0.00028493,2]
[377332138,1754352655168,-460.0,0.00028493,2]
[377332139,1754352655178,-460.0,0.00028493,2]
[377332140,1754352655187,-452.4,0.00028493,2]
[377332141,1754352655197,-460.0,0.00028493,2]
[377332142,1754352655206,-1573.39,0.00028493,2]
[377332143,1754352655215,-337.72,0.00028493,2]
[377332144,1754352655224,-460.0,0.00028493,2]
[377332145,1754352655233,-671.6,0.00028493,2]
[377332146,1754352655242,-3403.99,0.00028493,2]
[377332147,1754352655252,-460.0,0.00028493,2]
[377332148,1754352655261,-205.54000003,0.00028493,2]
[377332149,1754352655273,-460.0,0.00028493,2]
[377332150,1754352655282,-867.6,0.00028493,2]
[377332151,1754352655294,-869.09,0.00028493,2]
[377332152,1754352655304,-734.49,0.00028493,2]
[377332153,1754352655314,-460.0,0.00028493,2]
[377332154,1754352655324,-725.54,0.00028493,2]
[377332155,1754352655335,-151.0,0.00028493,7]
[377332156,1754352655344,-1568.58,0.00028493,2]
[377332157,1754352655357,-509.81,0.00028493,2]
[377332158,1754352655368,-460.0,0.00028493,2]
[377332159,1754352655378,-889.2,0.00028493,2]
[377332160,1754352655389,-460.0,0.00028493,2]
[377332161,1754352655399,-622.78,0.00028493,2]
[377332162,1754352655408,-200.0,0.00028521,5]
[377332163,1754352655418,-1000.0,0.0002858,2]
[377332164,1754352655428,-460.0,0.00028721,2]
[377332165,1754352655439,-1779.8,0.00028721,2]
[377332166,1754352655448,-460.0,0.00028721,2]
[377332167,1754352655458,-460.0,0.00028721,2]
[377332168,1754352655468,-678.81,0.00028721,2]
[377332169,1754352655477,-420.0,0.00028739,2]
[377332170,1754352655487,-151.0,0.00028767,7]
[377332171,1754352655497,-151.0,0.00028767,7]
[377332172,1754352655506,-151.0,0.00028767,7]
[377332173,1754352655515,-151.0,0.00028767,7]
[377332174,1754352655525,-460.0,0.00028767,2]
[377332175,1754352655534,-460.0,0.00028767,2]
[377332176,1754352655544,-151.0,0.00028767,7]
[377332177,1754352655553,-394.276246,0.00028767,7]
[377332178,1754352655563,-394.276246,0.00028767,7]
[377332179,1754352655572,-460.0,0.00028767,2]
[377332180,1754352655582,-460.0,0.00028767,2]
[377332181,1754352655592,-368.52,0.00028767,2]
[377332182,1754352655603,-153.385406,0.00028767,7]
[377332183,1754352655612,-890.31,0.00028767,2]
[377332184,1754352655622,-460.0,0.00028767,2]
[377332185,1754352655631,-760.6,0.00028767,2]
[377332186,1754352655641,-264.508428,0.00028767,7]
[377332187,1754352655650,-264.508428,0.00028767,7]
[377332188,1754352655660,-460.0,0.00028767,2]
[377332189,1754352655670,-460.0,0.00028767,2]
[377332190,1754352655679,-3440.83,0.00028767,2]
[377332191,1754352655688,-151.0,0.00028767,7]
[377332192,1754352655699,-2422.55,0.00028767,2]
[377332193,1754352655708,-151.0,0.00028767,7]
[377332194,1754352655718,-1983.4,0.00028767,2]
[377332195,1754352655727,-460.0,0.00028767,2]
[377332196,1754352655737,-460.0,0.00028767,2]
[377332197,1754352655747,-190.90763,0.00028767,7]
[377332198,1754352655756,-190.90763,0.00028767,7]
[377332199,1754352655766,-460.0,0.00028767,2]
[377332200,1754352655776,-1573.39,0.00028767,2]
[377332201,1754352655785,-460.0,0.00028767,2]
[377332202,1754352655895,-671.6,0.00028767,2]
[377332203,1754352655906,-3403.99,0.00028767,2]
[377332204,1754352655916,-460.0,0.00028767,2]
[377332205,1754352655926,-460.0,0.00028767,2]
[377332206,1754352655935,-867.6,0.00028767,2]
[377332207,1754352655945,-869.09,0.00028767,2]
[377332208,1754352655955,-734.49,0.00028767,2]
[377332209,1754352655965,-164.136824,0.00028767,7]
[377332210,1754352655975,-164.136824,0.00028767,7]
[377332211,1754352655984,-460.0,0.00028767,2]
[377332212,1754352655994,-725.54,0.00028767,2]
[377332213,1754352656004,-1568.58,0.00028767,2]
[377332214,1754352656013,-509.81,0.00028767,2]
[377332215,1754352656022,-460.0,0.00028767,2]
[377332216,1754352656032,-889.2,0.00028767,2]
[377332217,1754352656042,-460.0,0.00028767,2]
[377332218,1754352656051,-622.78,0.00028767,2]
[377332219,1754352656061,-151.0,0.00028899,7]
[377332220,1754352656071,-360.0,0.00028907,2]
[377332221,1754352656080,-460.0,0.00028995,2]
[377332222,1754352656090,-1779.8,0.00028995,2]
[377332223,1754352656100,-460.0,0.00028995,2]
[377332224,1754352656109,-460.0,0.00028995,2]
[377332225,1754352656120,-678.81,0.00028995,2]
[377332226,1754352656130,-2000.0,0.00029016,5]
[377332227,1754352656140,-2000.0,0.00029016,5]
[377332228,1754352656149,-151.0,0.00029027,7]
[377332229,1754352656161,-162.065542,0.00029034,7]
[377332230,1754352656171,-162.065542,0.00029034,7]
[377332231,1754352656183,-172.96625344,0.00029035,2]
[377332232,1754352656194,-691.17314873,0.00029035,2]
[377332233,1754352656211,-713.9436922,0.00029035,2]
[377332234,1754352656221,-690.86917808,0.00029035,2]
[377332235,1754352656231,-2760.71323561,0.00029035,2]
[377332236,1754352656240,-613.12280749,0.00029035,2]
[377332237,1754352656250,-294.8,0.00029041,2]
[377332238,1754352656260,-460.0,0.00029041,2]
[377332239,1754352656269,-339.46,0.00029041,2]
[377332240,1754352656279,-460.0,0.00029041,2]
[377332241,1754352656289,-890.31,0.00029041,2]
[377332242,1754352656304,-460.0,0.00029041,2]
[377332243,1754352656314,-760.6,0.00029041,2]
[377332244,1754352656324,-460.0,0.00029041,2]
[377332245,1754352656333,-460.0,0.00029041,2]
[377332246,1754352656343,-3440.83,0.00029041,2]
[377332247,1754352656352,-2422.55,0.00029041,2]
[377332248,1754352656362,-1983.4,0.00029041,2]
[377332249,1754352656371,-460.0,0.00029041,2]
[377332250,1754352656382,-230.39,0.00029041,2]
[377332251,1754352656391,-158.51,0.00029041,2]
[377332252,1754352656400,-1573.39,0.00029041,2]
[377332253,1754352656411,-460.0,0.00029041,2]
[377332254,1754352656420,-671.6,0.00029041,2]
[377332255,1754352656430,-3403.99,0.00029041,2]
[377332256,1754352656440,-460.0,0.00029041,2]
[377332257,1754352656450,-460.0,0.00029041,2]
[377332258,1754352656460,-867.6,0.00029041,2]
[377332259,1754352656471,-869.09,0.00029041,2]
[377332260,1754352656481,-734.49,0.00029041,2]
[377332261,1754352656491,-460.0,0.00029041,2]
[377332262,1754352656501,-725.54,0.00029041,2]
[377332263,1754352656511,-1568.58,0.00029041,2]
[377332264,1754352656520,-509.81,0.00029041,2]
[377332265,1754352656530,-460.0,0.00029041,2]
[377332266,1754352656540,-889.2,0.00029041,2]
[377332267,1754352656550,-460.0,0.00029041,2]
[377332268,1754352656559,-622.78,0.00029041,2]
[377332269,1754352656569,-200.0,0.00029228,15]
[377332270,1754352656578,-300.0,0.00029228,15]
[377332271,1754352656587,-2450.03873874,0.00029249,2]
[377332272,1754352656597,-460.0,0.00029269,2]
[377332273,1754352656607,-1779.8,0.00029269,2]
[377332274,1754352656616,-460.0,0.00029269,2]
[377332275,1754352656626,-460.0,0.00029269,2]
[377332276,1754352656636,-678.81,0.00029269,2]
[377332277,1754352656645,-1000.0,0.0002928,2]
[377332278,1754352656655,-151.0,0.00029305,7]
[377332279,1754352656665,-151.0,0.00029308,7]
[377332280,1754352656674,-151.0,0.00029311,7]
[377332281,1754352656684,-151.0,0.00029315,7]
[377332282,1754352656696,-460.0,0.00029315,2]
[377332283,1754352656706,-151.0,0.00029315,7]
[377332284,1754352656716,-394.276246,0.00029315,7]
[377332285,1754352656725,-394.276246,0.00029315,7]
[377332286,1754352656735,-460.0,0.00029315,2]
[377332287,1754352656745,-890.31,0.00029315,2]
[377332288,1754352656754,-460.0,0.00029315,2]
[377332289,1754352656764,-760.6,0.00029315,2]
[377332290,1754352656774,-264.508428,0.00029315,7]
[377332291,1754352656784,-264.508428,0.00029315,7]
[377332292,1754352656794,-460.0,0.00029315,2]
[377332293,1754352656803,-333.45,0.00029315,2]
[377332294,1754352656813,-2422.55,0.00029315,2]
[377332295,1754352656822,-3440.83,0.00029315,2]
[377332296,1754352656832,-151.0,0.00029315,7]
[377332297,1754352656841,-151.0,0.00029315,7]
[377332298,1754352656852,-1983.4,0.00029315,2]
[377332299,1754352656861,-460.0,0.00029315,2]
[377332300,1754352656871,-190.90763,0.00029315,7]
[377332301,1754352656880,-190.90763,0.00029315,7]
[377332302,1754352656890,-1573.39,0.00029315,2]
[377332303,1754352656899,-396.6,0.00029315,2]
[377332304,1754352656909,-671.6,0.00029315,2]
[377332305,1754352656918,-3403.99,0.00029315,2]
[377332306,1754352656928,-460.0,0.00029315,2]
[377332307,1754352656938,-460.0,0.00029315,2]
[377332308,1754352656947,-867.6,0.00029315,2]
[377332309,1754352656957,-869.09,0.00029315,2]
[377332310,1754352656967,-734.49,0.00029315,2]
[377332311,1754352656976,-164.136824,0.00029315,7]
[377332312,1754352656985,-164.136824,0.00029315,7]
[377332313,1754352656995,-460.0,0.00029315,2]
[377332314,1754352657005,-725.54,0.00029315,2]
[377332315,1754352657014,-1568.58,0.00029315,2]
[377332316,1754352657024,-509.81,0.00029315,2]
[377332317,1754352657033,-460.0,0.00029315,2]
[377332318,1754352657043,-889.2,0.00029315,2]
[377332319,1754352657053,-460.0,0.00029315,2]
[377332320,1754352657062,-622.78,0.00029315,2]
[377332321,1754352657071,-460.0,0.00029455,2]
[377332322,1754352657080,-1000.0,0.00029482,2]
[377332323,1754352657090,-500.0,0.00029522,5]
[377332324,1754352657099,-460.0,0.00029543,2]
[377332325,1754352657108,-1779.8,0.00029543,2]
[377332326,1754352657118,-309.90527745,0.00029543,2]
[377332327,1754352657128,-460.0,0.00029543,2]
[377332328,1754352657137,-678.81,0.00029543,2]
[377332329,1754352657147,-995.9501556,0.00029564,5]
[377332330,1754352657157,-2500.0,0.00029564,5]
[377332331,1754352657167,-2500.0,0.00029564,5]
[377332332,1754352657176,-151.0,0.00029589,7]
[377332333,1754352657186,-460.0,0.00029589,2]
[377332334,1754352657196,-460.0,0.00029589,2]
[377332335,1754352657206,-162.065542,0.00029589,7]
[377332336,1754352657216,-162.065542,0.00029589,7]
[377332337,1754352657226,-890.31,0.00029589,2]
[377332338,1754352657236,-460.0,0.00029589,2]
[377332339,1754352657246,-760.6,0.00029589,2]
[377332340,1754352657255,-460.0,0.00029589,2]
[377332341,1754352657265,-2422.55,0.00029589,2]
[377332342,1754352657274,-3440.83,0.00029589,2]
[377332343,1754352657284,-1983.4,0.00029589,2]
[377332344,1754352657294,-460.0,0.00029589,2]
[377332345,1754352657305,-1573.39,0.00029589,2]
[377332346,1754352657313,-671.6,0.00029589,2]
[377332347,1754352657322,-3403.99,0.00029589,2]
[377332348,1754352657331,-460.0,0.00029589,2]
[377332349,1754352657341,-460.0,0.00029589,2]
[377332350,1754352657350,-867.6,0.00029589,2]
[377332351,1754352657360,-869.09,0.00029589,2]
[377332352,1754352657370,-734.49,0.00029589,2]
[377332353,1754352657380,-460.0,0.00029589,2]
[377332354,1754352657389,-725.54,0.00029589,2]
[377332355,1754352657398,-1568.58,0.00029589,2]
[377332356,1754352657407,-460.0,0.00029589,2]
[377332357,1754352657416,-509.81,0.00029589,2]
[377332358,1754352657425,-889.2,0.00029589,2]
[377332359,1754352657435,-460.0,0.00029589,2]
[377332360,1754352657445,-622.78,0.00029589,2]
[377332361,1754352657455,-151.0,0.00029623,2]
[377332362,1754352657464,-23335.19683072,0.000297,2]
[377332363,1754352657474,-151.0,0.000297,7]
[377332364,1754352657484,-151.0,0.000297,7]
[377332365,1754352657493,-151.0,0.000297,7]
[377332366,1754352657503,-151.0,0.000297,7]
[377332367,1754352657513,-190.90763,0.000297,7]
[377332368,1754352657523,-190.90763,0.000297,7]
[377332369,1754352657532,-164.136824,0.000297,7]
[377332370,1754352657542,-164.136824,0.000297,7]
[377332371,1754352657551,-238.2,0.00029788,2]
[377332372,1754352657561,-460.0,0.00029817,2]
[377332373,1754352657571,-1779.8,0.00029817,2]
[377332374,1754352657580,-460.0,0.00029817,2]
[377332375,1754352657590,-678.81,0.00029817,2]
[377332376,1754352657600,-151.0,0.00029836,7]
[377332377,1754352657610,-2000.0,0.00029848,2]
[377332378,1754352657619,-1764.09318151,0.00029852,24]
[377332379,1754352657630,-151.0,0.00029856,7]
[377332380,1754352657639,-214.090222,0.00029862,7]